bitfinex/quotes_ETHUSD_20260108
["timestamp","ask_amount","ask_price","bid_price","bid_amount"]
[1767874457074,0.04028489,3102.9,3101.9,0.97772394]
[1767874457278,0.04028489,3102.9,3101.8,0.00924585]
[1767874457279,0.001,3102.5,3101.8,0.00924585]
[1767874457674,0.001,3102.5,3101.4,3.2242999]
[1767874458005,0.001,3102.5,3101.5,0.00925595]
[1767874458203,0.001,3102.5,3101.5,3.22418698]
[1767874458708,0.001,3102.5,3101.6,3.22413709]
[1767874459204,0.001,3102.5,3101.5,0.0092548]
[1767874459205,0.001,3102.5,3101.7,3.22402526]
[1767874459791,0.001,3102.5,3101.7,0.97772394]
[1767874460198,0.001,3102.5,3101.6,0.0092522]
[1767874460385,0.001,3102.5,3101.6,0.00925335]
[1767874460577,0.001,3102.5,3101.6,3.23338951]
[1767874461217,0.001,3102.5,3101.6,0.00925335]
[1767874461384,0.94732505,3102.5,3101.5,3.23346473]
[1767874461700,0.94732505,3102.5,3101.6,3.2241181]
[1767874462000,4.17053649,3102.5,3101.6,3.2241181]
[1767874462504,0.94732505,3102.5,3101.6,3.2241181]
[1767874462678,0.04129008,3102.5,3101.6,7.42598441]
[1767874462878,0.001,3102.5,3101.6,4.20184204]
[1767874464406,0.001,3102.5,3101.6,7.42598441]
[1767874464904,0.001,3102.5,3101.6,4.20184204]
[1767874465090,0.001,3102.5,3101.6,7.42598441]
[1767874465808,0.001,3102.5,3101.6,4.20184204]
[1767874466206,0.001,3102.5,3101.6,7.42598441]
[1767874466409,0.001,3102.5,3101.7,0.97772394]
[1767874467211,0.001,3102.5,3101.7,0.98697584]
[1767874468685,0.001,3102.5,3101.8,3.22393448]
[1767874469104,0.001,3102.5,3101.8,6.44786896]
[1767874469705,0.001,3102.2,3101.8,6.44786896]
[1767874470013,0.001,3102.2,3101.8,7.4255929]
[1767874470587,0.001,3102.2,3102.0,4.20145056]
[1767874470911,0.001,3102.2,3101.9,3.22378331]
[1767874472013,0.001,3102.2,3101.8,3.23311249]
[1767874472713,0.001,3102.2,3101.9,3.22381502]
[1767874473707,0.001,3102.2,3101.8,3.22390211]
[1767874474695,0.001,3102.2,3101.6,7.41395502]
[1767874474898,0.001,3102.2,3101.7,0.0092565]
[1767874475514,0.99162469,3103.3,3102.2,0.96567028]
[1767874475689,0.99162469,3103.3,3102.4,0.96567028]
[1767874475884,0.99162469,3103.3,3102.5,0.19122281]
[1767874476410,0.99162469,3103.6,3102.5,1.15689309]
[1767874476581,4.21373207,3103.6,3102.6,3.2231032]
[1767874476783,0.0402771,3103.5,3102.6,3.2231032]
[1767874477495,0.0402771,3103.5,3102.6,6.4462064]
[1767874477692,0.0402771,3103.5,3102.6,3.2231032]
[1767874478194,0.0402771,3103.5,3102.5,4.18883077]
[1767874478790,3.22227234,3103.4,3102.5,4.18883077]
[1767874479108,0.99162469,3103.3,3102.4,0.00922912]
[1767874479294,0.99162469,3103.1,3101.6,0.96567028]
[1767874479499,0.99162469,3102.9,3101.7,0.97491822]
[1767874480187,0.99162469,3103.2,3102.5,3.22316249]
[1767874480789,0.99162469,3103.2,3102.3,4.18906681]
[1767874481017,0.99162469,3103.2,3102.3,7.42171684]
[1767874481220,3.22232559,3103.4,3102.3,7.41248169]
[1767874481388,3.22232559,3103.4,3102.3,4.18906681]
[1767874481389,0.0402797,3103.3,3102.3,4.18906681]
[1767874481590,0.001,3103.0,3102.3,4.18906681]
[1767874482921,0.001,3103.0,3102.3,7.41248169]
[1767874484023,0.001,3103.0,3102.3,3.22339653]
[1767874484321,0.001,3103.0,3102.3,3.23263399]
[1767874484501,0.99262469,3103.0,3102.3,3.22339653]
[1767874485736,0.99262469,3103.0,3102.2,0.00923775]
[1767874485926,0.99262469,3103.0,3102.1,3.22358536]
[1767874485927,0.99162469,3102.9,3102.1,3.22358536]
[1767874486516,0.99162469,3102.9,3102.2,3.2235105]
[1767874486714,0.99162469,3103.8,3102.5,0.96567028]
[1767874486913,0.03105756,3103.7,3102.5,0.03223207]
[1767874487118,0.99162469,3103.6,3102.3,0.03223414]
[1767874487444,0.99162469,3103.2,3101.6,3.22604422]
[1767874487643,0.99162469,3103.0,3101.6,3.22604422]
[1767874487810,0.99162469,3102.8,3101.6,3.22604422]
[1767874488013,0.846,3102.9,3101.6,3.22604422]
[1767874488014,0.74363771,3103.1,3101.8,0.96567028]
[1767874488250,1.03190569,3103.2,3101.8,0.96567028]
[1767874488420,1.03190698,3103.1,3101.9,0.98296209]
[1767874488742,1.03190698,3103.1,3101.9,0.96567028]
[1767874488918,1.4573353,3103.1,3101.9,0.98296209]
[1767874489118,0.99162469,3103.0,3101.9,0.98296209]
[1767874489521,0.99162469,3103.0,3102.0,6.44745324]
[1767874489708,0.99162469,3103.0,3102.1,0.0172907]
[1767874489909,0.99162469,3103.0,3102.0,6.44745324]
[1767874490113,0.46571061,3103.1,3102.1,0.96567028]
[1767874490336,1.03190569,3103.2,3102.1,0.96567028]
[1767874490636,1.03190569,3103.2,3101.9,3.22379606]
[1767874490813,1.03190569,3103.2,3101.8,0.96567028]
[1767874491014,1.03190569,3103.2,3101.7,4.0853085]
[1767874491250,0.99162469,3103.2,3102.0,0.96567028]
[1767874491539,4.21431241,3103.0,3102.1,0.01728866]
[1767874491908,0.99162469,3103.0,3102.1,3.22357337]
[1767874492336,0.99162469,3103.0,3102.1,6.44719607]
[1767874492539,1.03190828,3103.0,3101.9,3.2237358]
[1767874492737,2.04377917,3102.9,3102.0,0.01729226]
[1767874492905,0.20615448,3102.9,3102.1,3.22361758]
[1767874493105,0.04028359,3103.0,3102.1,4.18928786]
[1767874493305,5.06004965,3103.3,3102.2,0.9829594]
[1767874493543,4.21404965,3103.3,3102.2,0.9829594]
[1767874493740,0.99162469,3103.3,3102.3,7.41250004]
[1767874493950,0.99162469,3103.3,3102.4,0.98295318]
[1767874494320,0.001,3103.0,3102.4,0.98295318]
[1767874495428,0.001,3103.0,3102.4,0.0172829]
[1767874495633,0.001,3103.0,3102.5,3.22320709]
[1767874495912,0.001,3103.0,3102.2,1.80967028]
[1767874496113,0.001,3103.0,3102.3,3.22334543]
[1767874499122,0.001,3103.0,3102.2,5.050424]
[1767874499939,0.001,3103.0,3102.2,4.206424]
[1767874500141,0.99262469,3103.0,3102.2,4.206424]
[1767874500317,0.99262469,3103.0,3102.2,7.42994279]
[1767874500524,0.99262469,3103.0,3102.2,4.18913692]
[1767874500722,0.99262469,3103.0,3102.2,4.20642502]
[1767874500919,0.99262469,3103.0,3102.1,0.002]
[1767874501140,0.99262469,3103.0,3102.2,3.22344663]
[1767874502746,0.001,3103.0,3102.3,0.99444311]
[1767874502927,0.93087251,3103.8,3102.5,0.99444311]
[1767874503124,0.93087251,3104.9,3102.7,0.99444311]
[1767874503322,0.93087251,3104.7,3102.9,0.99444311]
[1767874503535,1.77687251,3104.7,3103.1,0.99444311]
[1767874503841,0.99255669,3104.6,3103.1,0.99444311]
[1767874504032,0.99255669,3104.3,3103.2,6.44496004]
[1767874504232,0.99255669,3104.3,3103.2,7.36073597]
[1767874504439,3.261515,3104.4,3103.3,0.91577593]
[1767874504621,3.261515,3104.4,3103.2,3.22248002]
[1767874504622,0.99255669,3104.3,3103.2,3.22248002]
[1767874504826,0.99255669,3104.1,3103.2,3.22248002]
[1767874505062,0.99255669,3104.1,3103.2,6.44496004]
[1767874505211,0.04026283,3104.6,3103.3,0.91577593]
[1767874505414,0.99255669,3104.7,3103.4,0.91577593]
[1767874506043,0.99255669,3104.7,3103.3,0.844]
[1767874506044,0.99255669,3104.7,3103.6,0.91577593]
[1767874506412,4.25375101,3104.7,3103.6,0.91577593]
[1767874506617,0.99255669,3104.6,3102.4,0.91577593]
[1767874506852,0.001,3102.9,3102.8,0.91577593]
[1767874507052,0.99255669,3104.4,3102.9,0.91577593]
[1767874507348,0.99255669,3104.4,3103.1,0.91577593]
[1767874507531,0.99255669,3104.4,3103.3,0.91577593]
[1767874507720,0.99255669,3104.4,3103.4,0.01725592]
[1767874508227,0.99255669,3104.3,3103.4,0.01725592]
[1767874508440,1.03282341,3104.3,3102.9,3.22271636]
[1767874508628,1.03282341,3104.3,3102.9,0.91577593]
[1767874508833,0.99255669,3104.1,3102.9,0.91577593]
[1767874509035,1.03282601,3104.1,3103.0,0.01726528]
[1767874509356,1.03282601,3104.1,3103.0,3.23991295]
[1767874510017,0.99255669,3104.1,3103.1,0.91577593]
[1767874510222,0.99255669,3104.0,3103.1,4.13831908]
[1767874510440,4.24579558,3104.3,3103.2,0.91577593]
[1767874510633,1.03282471,3104.2,3102.8,3.22285349]
[1767874510852,1.03282471,3104.2,3102.9,3.22278137]
[1767874511159,1.03282471,3104.2,3102.8,0.0172664]
[1767874511358,0.845,3104.1,3103.0,3.22261408]
[1767874511521,0.22805308,3104.0,3103.0,4.13839001]
[1767874511722,1.22060977,3104.0,3103.0,4.13839001]
[1767874512875,4.21430996,3103.9,3103.0,0.91577593]
[1767874513033,4.21430996,3103.9,3102.1,0.91777593]
[1767874513034,0.99255669,3103.8,3102.1,0.91777593]
[1767874513359,0.99255669,3103.8,3102.7,3.22294498]
[1767874513568,2.58116301,3103.7,3102.7,3.22294498]
[1767874513728,2.58116301,3103.7,3102.5,0.91577593]
[1767874513930,0.99255669,3103.6,3102.2,4.1564869]
[1767874514239,0.99255669,3103.6,3102.4,3.22325195]
[1767874514420,0.99255669,3103.4,3102.4,3.22325195]
[1767874514926,0.99255669,3103.3,3102.3,6.44682976]
[1767874515640,0.99255669,3103.1,3102.1,0.002]
[1767874516654,0.99255669,3103.1,3102.1,3.22558165]
[1767874516854,1.17631236,3103.0,3102.1,0.002]
[1767874517039,1.83755669,3102.9,3102.1,0.002]
[1767874517240,0.99255669,3102.9,3102.1,0.002]
[1767874517851,1.83755669,3102.9,3102.1,0.002]
[1767874518053,0.99255669,3102.9,3102.1,0.002]
[1767874518254,0.99255669,3103.4,3102.3,0.91577593]
[1767874518553,0.99255669,3104.4,3102.4,0.91577593]
[1767874518759,0.99255669,3104.2,3102.4,0.91577593]
[1767874519050,0.99255669,3103.8,3102.6,6.4462064]
[1767874519222,1.0328312,3103.7,3102.6,6.4462064]
[1767874519624,1.0328312,3103.7,3102.6,3.2231032]
[1767874519824,0.99255669,3103.7,3102.6,3.2231032]
[1767874520064,0.99255669,3103.6,3102.6,3.2231032]
[1767874520230,7.43606323,3103.9,3102.6,7.36198233]
[1767874520428,0.99255669,3103.9,3102.7,0.93304798]
[1767874520628,4.06659414,3104.1,3102.7,0.93304798]
[1767874520953,5.05915083,3104.1,3102.9,0.91577593]
[1767874521142,5.05915083,3104.1,3103.0,0.01726528]
[1767874521143,4.21415083,3104.1,3103.0,0.01726528]
[1767874521461,0.845,3104.3,3103.0,0.93304121]
[1767874521638,0.845,3104.2,3103.0,0.93304121]
[1767874522566,1.03282601,3104.1,3102.9,0.01726528]
[1767874522725,1.87782601,3104.1,3102.9,0.01726528]
[1767874523054,0.99255669,3104.0,3102.9,0.01726528]
[1767874523349,0.04027191,3103.9,3103.0,3.22268772]
[1767874523952,0.04027191,3103.9,3103.0,6.44537544]
[1767874524155,0.04027191,3103.9,3103.0,3.22268772]
[1767874524761,0.99255669,3103.8,3103.0,3.22268772]
[1767874525340,0.99255669,3103.8,3102.8,6.44579088]
[1767874525539,0.99255669,3103.8,3102.9,0.01726992]
[1767874525740,0.845,3104.1,3103.0,0.91577593]
[1767874526040,0.99255669,3104.0,3102.9,0.01726371]
[1767874526239,0.04027191,3103.9,3102.9,0.01726371]
[1767874526627,0.04027191,3103.9,3102.9,0.93303964]
[1767874526839,0.99255669,3104.0,3102.9,0.93303964]
[1767874527539,0.99255669,3104.0,3103.0,6.44537544]
[1767874527749,0.99255669,3104.0,3103.1,0.01726584]
[1767874527937,0.99255669,3103.8,3102.9,3.22277335]
[1767874528259,0.99255669,3103.8,3102.9,6.46283203]
[1767874528468,0.99255669,3104.1,3103.0,0.91577593]
[1767874528669,0.99255669,3104.1,3103.1,0.93303964]
[1767874528836,0.99355669,3104.4,3103.1,0.91577593]
[1767874529030,0.04026672,3104.3,3103.2,0.933035]
[1767874529253,0.99355669,3104.4,3103.2,0.933035]
[1767874529455,1.03382211,3104.4,3103.2,0.933035]
[1767874529655,0.001,3104.4,3103.4,0.91577593]
[1767874529855,0.001,3104.4,3103.4,0.93303083]
[1767874530954,0.001,3104.4,3103.7,0.91577593]
[1767874531142,0.001,3104.4,3103.9,0.91577593]
[1767874531548,0.001,3104.4,3103.9,3.22166066]
[1767874531864,0.001,3104.4,3103.8,4.06580558]
[1767874532071,0.001,3104.4,3103.9,3.22172824]
[1767874532372,0.001,3104.4,3103.9,7.38172767]
[1767874532866,0.001,3104.4,3104.0,0.93824616]
[1767874534049,0.001,3104.4,3104.1,3.22154569]
[1767874535039,0.001,3104.4,3104.1,6.44309138]
[1767874535252,0.001,3104.4,3104.1,7.38133754]
[1767874535454,0.001,3105.1,3104.2,0.93824616]
[1767874535659,0.001,3105.1,3104.1,6.44309138]
[1767874535855,4.16712855,3105.1,3104.0,6.44329896]
[1767874536060,0.94660914,3105.1,3104.1,0.01723776]
[1767874537272,0.94660914,3105.1,3104.1,0.01723776]
[1767874537671,0.90635279,3105.1,3104.1,0.95548392]
[1767874538177,0.94660914,3105.1,3104.2,3.22144191]
[1767874538354,4.16713715,3105.1,3104.2,3.22144191]
[1767874538749,4.16713715,3105.1,3104.1,4.17701918]
[1767874538945,0.90535279,3105.0,3104.1,3.2215373]
[1767874539753,0.90535279,3105.0,3104.0,3.23885421]
[1767874539952,0.90535279,3104.7,3103.7,3.22196088]
[1767874540353,0.90535279,3104.7,3103.7,6.44392176]
[1767874540680,0.90535279,3104.7,3103.8,0.01724656]
[1767874542378,4.12629839,3104.7,3103.8,3.23905931]
[1767874544478,0.90535279,3104.7,3103.8,3.23905931]
[1767874544771,0.04026024,3104.8,3104.1,0.002]
[1767874544968,0.04126024,3104.8,3104.1,0.002]
[1767874545164,0.001,3104.8,3104.1,0.002]
[1767874545365,0.001,3104.8,3104.1,0.94024616]
[1767874545755,0.90535279,3104.7,3104.1,0.002]
[1767874546467,3.22102686,3104.6,3104.1,0.002]
[1767874546864,4.12637965,3104.6,3104.1,0.002]
[1767874547070,7.34740651,3104.6,3104.1,0.002]
[1767874547674,4.12637965,3104.6,3104.1,0.002]
[1767874547977,0.90535279,3104.5,3104.1,0.002]
[1767874548951,4.12655624,3104.5,3104.1,0.002]
[1767874549351,0.90535279,3104.4,3104.1,0.002]
[1767874552174,4.12661971,3104.4,3104.1,0.002]
[1767874552363,0.90535279,3104.4,3104.1,0.002]
[1767874552565,4.12661209,3104.4,3104.1,0.002]
[1767874553474,0.90535279,3104.4,3104.1,0.002]
[1767874553672,4.12660993,3104.4,3104.1,0.002]
[1767874555177,0.04026413,3104.5,3104.1,0.002]
[1767874555373,4.16678902,3104.5,3104.1,0.002]
[1767874556993,0.94561692,3104.5,3104.1,0.002]
[1767874557203,0.90535279,3104.5,3104.1,0.002]
[1767874557571,3.22106066,3104.6,3104.1,0.002]
[1767874558603,4.12641345,3104.6,3104.1,0.002]
[1767874558809,0.90535279,3104.5,3104.4,0.002]
[1767874558980,0.90535279,3104.5,3104.1,0.002]
[1767874560094,0.90535279,3104.7,3104.1,0.002]
[1767874560387,0.94561562,3104.6,3104.1,0.002]
[1767874560589,0.90535279,3104.6,3104.1,0.002]
[1767874561798,4.12638645,3104.6,3104.1,0.002]
[1767874562279,4.21782721,3104.8,3104.1,0.002]
[1767874562583,4.25808745,3104.8,3104.1,0.002]
[1767874562901,4.25808745,3104.8,3104.3,3.89209111]
[1767874562902,0.001,3104.8,3104.3,3.89209111]
[1767874563407,0.001,3105.1,3104.5,2.91000429]
[1767874563704,0.001,3105.1,3104.4,0.98208682]
[1767874564220,0.99694908,3105.1,3104.1,0.98408682]
[1767874564509,0.04025764,3105.0,3104.3,4.2033742]
[1767874564687,0.99694908,3105.1,3104.3,0.98208682]
[1767874564879,0.001,3105.1,3104.3,0.98208682]
[1767874565081,0.001,3105.1,3104.3,4.20336513]
[1767874565410,0.001,3105.1,3104.5,4.20320392]
[1767874565988,0.001,3105.1,3104.5,0.98208682]
[1767874567627,0.001,3105.1,3104.5,4.20321248]
[1767874567995,0.001,3105.1,3104.5,0.98208682]
[1767874569415,0.001,3105.1,3104.5,4.20321543]
[1767874569615,0.001,3105.1,3104.5,0.98208682]
[1767874570333,0.001,3105.1,3104.1,0.002]
[1767874570334,0.93702627,3105.1,3104.1,0.002]
[1767874570500,0.93602627,3104.9,3104.1,0.002]
[1767874570696,0.93602627,3104.7,3104.1,0.002]
[1767874570901,0.93602627,3104.7,3104.0,0.002]
[1767874571119,1.1141289,3104.7,3104.0,0.002]
[1767874572409,0.93602627,3104.5,3104.0,0.002]
[1767874573399,1.1141289,3104.7,3104.0,0.002]
[1767874573625,0.001,3104.8,3104.0,0.95804028]
[1767874573931,0.001,3104.8,3104.0,0.94079789]
[1767874574427,0.001,3105.1,3104.6,0.93879789]
[1767874576002,0.001,3105.1,3104.8,0.93879789]
[1767874576299,0.001,3105.1,3104.9,4.15951353]
[1767874576922,0.001,3105.1,3104.9,3.22071564]
[1767874577276,0.001,3105.1,3104.8,3.22080788]
[1767874577430,0.001,3105.1,3104.5,0.93879789]
[1767874577602,0.001,3105.1,3104.3,0.844]
[1767874577797,0.001,3105.1,3104.4,3.40117132]
[1767874578024,0.001,3105.1,3104.5,3.22109491]
[1767874579032,0.001,3105.1,3104.6,0.93879789]
[1767874579837,0.001,3105.1,3104.8,0.93879789]
[1767874580939,0.001,3105.1,3105.0,4.1594098]
[1767874581539,0.001,3105.1,3105.0,0.93879789]
[1767874581945,0.001,3105.1,3105.0,4.1594098]
[1767874582610,0.001,3105.1,3105.0,4.17663237]
[1767874583022,0.001,3105.9,3105.2,0.93879789]
[1767874584032,0.93702627,3105.9,3104.9,3.22065384]
[1767874584232,0.97627354,3105.8,3105.0,3.22058288]
[1767874584423,0.04024727,3105.8,3105.1,4.15928686]
[1767874584744,0.001,3105.9,3105.1,4.15928686]
[1767874585145,0.001,3105.9,3105.1,7.37979505]
[1767874585336,0.001,3105.9,3105.1,4.15928686]
[1767874585748,0.04124598,3105.9,3105.1,0.93879789]
[1767874585921,0.001,3105.9,3105.1,4.15930012]
[1767874587650,0.001,3105.9,3105.1,0.93879789]
[1767874587858,0.001,3105.9,3104.8,4.06679377]
[1767874587859,0.93602627,3105.8,3104.8,0.002]
[1767874588145,0.93602627,3105.6,3104.8,0.002]
[1767874589125,0.93602627,3105.6,3104.8,3.22280756]
[1767874589322,0.93602627,3105.6,3104.8,0.002]
[1767874589524,4.19627433,3105.6,3104.8,0.002]
[1767874589825,0.93602627,3105.5,3104.8,0.002]
[1767874591018,0.93602627,3105.5,3104.5,0.002]
[1767874591231,0.93602627,3105.1,3104.5,0.002]
[1767874592326,3.22061191,3105.0,3104.5,0.002]
[1767874593632,4.1565864,3105.1,3104.5,0.002]
[1767874596267,4.1565864,3105.1,3104.8,0.002]
[1767874597337,0.93602627,3105.1,3104.8,0.002]
[1767874598070,3.22045063,3105.2,3104.8,0.002]
[1767874599566,4.17304029,3105.3,3104.8,0.002]
[1767874599810,0.91245142,3105.3,3104.8,0.002]
[1767874600273,0.04025246,3105.4,3104.8,0.002]
[1767874600470,0.91245142,3105.8,3104.8,1.00591041]
[1767874600684,3.21983612,3105.8,3105.0,0.98668775]
[1767874600835,0.04024857,3105.7,3105.1,0.98668775]
[1767874601041,0.04024857,3105.7,3104.8,4.20946942]
[1767874601334,3.21983612,3105.8,3104.9,0.98668775]
[1767874601534,7.39237093,3105.8,3104.9,0.98668775]
[1767874601768,4.13228754,3105.8,3104.9,0.98668775]
[1767874601973,4.17253481,3105.8,3104.9,0.98668775]
[1767874602269,4.13228754,3105.8,3104.9,0.98668775]
[1767874603141,4.17253481,3105.8,3104.9,0.98668775]
[1767874603336,4.13228754,3105.8,3104.9,0.98668775]
[1767874604459,4.13228754,3105.8,3104.8,3.23999418]
[1767874604460,0.95269999,3105.7,3104.8,3.22276782]
[1767874604960,0.91245142,3105.6,3104.8,3.22276782]
[1767874605461,0.91245142,3105.6,3104.9,0.98668775]
[1767874606878,0.91245142,3105.6,3104.8,0.002]
[1767874607180,0.91245142,3105.6,3104.8,0.98868775]
[1767874607355,0.95270258,3105.5,3104.8,0.002]
[1767874607802,0.91245142,3105.4,3104.8,0.002]
[1767874608087,0.91245142,3105.2,3104.8,0.002]
[1767874608585,0.91245142,3105.2,3104.5,0.002]
[1767874609292,0.91245142,3105.0,3104.5,0.002]
[1767874609478,0.91245142,3104.9,3104.5,0.002]
[1767874609786,0.91245142,3104.9,3104.0,0.002]
[1767874611079,0.91245142,3104.9,3104.0,0.98868775]
[1767874611285,4.13327079,3104.8,3104.0,0.002]
[1767874611492,4.94220569,3104.8,3104.0,0.002]
[1767874611863,4.94220569,3104.8,3104.0,0.98868775]
[1767874613095,0.91245142,3104.7,3104.0,0.002]
[1767874614390,4.02975427,3104.8,3104.0,0.98868775]
[1767874614896,4.94220569,3104.8,3104.0,0.98868775]
[1767874616207,1.6477982,3105.0,3104.1,0.98668775]
[1767874616363,0.845,3105.0,3104.1,0.98668775]
[1767874616564,1.75745142,3105.0,3104.1,0.98668775]
[1767874616798,0.91245142,3104.9,3104.1,0.98668775]
[1767874618366,0.91245142,3104.9,3104.2,0.98668775]
[1767874618615,3.22073123,3104.9,3104.2,0.98668775]
[1767874618982,0.04026024,3104.8,3104.2,0.98668775]
[1767874619482,3.26100491,3104.9,3104.2,0.98668775]
[1767874620084,3.26100491,3104.9,3104.3,0.002]
[1767874620297,0.001,3104.6,3104.3,1.00592337]
[1767874620501,0.001,3104.6,3104.3,0.98868775]
[1767874621081,0.91345142,3104.6,3104.0,0.002]
[1767874621281,0.001,3104.6,3104.0,0.98868775]
[1767874621702,0.91345142,3104.6,3104.0,0.002]
[1767874622013,0.91245142,3104.5,3103.6,0.98668775]
[1767874622351,0.98564464,3104.4,3103.6,0.98668775]
[1767874622519,3.22114617,3104.5,3103.7,0.93288949]
[1767874623028,0.98564464,3104.4,3103.3,0.93288949]
[1767874623184,0.98564464,3104.4,3103.6,3.22206323]
[1767874623507,0.98564464,3104.4,3103.6,0.93288949]
[1767874623901,0.98564464,3104.4,3103.6,4.15493508]
[1767874624211,0.98564464,3104.4,3103.6,0.93288949]
[1767874624408,0.98564464,3104.3,3103.3,3.2223756]
[1767874624579,0.98564464,3104.3,3103.2,0.93488949]
[1767874624785,0.98564464,3104.3,3103.3,3.22236814]
[1767874624983,0.98564464,3104.3,3103.3,4.15525763]
[1767874625186,0.98564464,3104.3,3103.4,0.93288949]
[1767874626688,3.22144191,3104.2,3103.4,0.93288949]
[1767874626890,4.20708655,3104.2,3103.4,0.93288949]
[1767874627587,0.98564464,3104.1,3103.2,0.002]
[1767874627787,0.98564464,3103.9,3103.2,0.002]
[1767874628894,4.20744066,3103.9,3103.2,0.002]
[1767874629093,0.98564464,3103.8,3103.2,0.002]
[1767874632020,0.98364464,3103.8,3103.2,0.002]
[1767874632218,0.99353869,3104.1,3103.2,0.96936123]
[1767874632419,0.04026802,3104.2,3103.2,0.96936123]
[1767874632716,0.99353869,3104.4,3103.5,0.96736123]
[1767874632916,0.99353869,3104.4,3103.5,0.96936123]
[1767874633123,0.001,3104.0,3103.5,0.96936123]
[1767874633622,0.001,3104.0,3103.6,0.96736123]
[1767874635050,0.001,3104.0,3103.7,0.01725527]
[1767874635847,0.001,3104.0,3103.8,0.96736123]
[1767874636015,0.001,3104.6,3104.0,0.96736123]
[1767874636629,0.99353869,3104.5,3103.5,0.002]
[1767874636821,0.99353869,3104.3,3103.5,0.002]
[1767874637023,0.99353869,3104.1,3103.5,0.002]
[1767874637333,1.0338093,3104.0,3103.5,0.002]
[1767874638731,1.03380671,3104.2,3103.5,0.002]
[1767874639026,4.25527095,3104.2,3103.5,0.002]
[1767874639227,0.99353869,3104.1,3103.5,0.002]
[1767874639428,0.74765324,3104.2,3103.5,0.96936123]
[1767874639632,0.04026932,3104.1,3103.5,0.96936123]
[1767874639834,1.03380671,3104.2,3103.5,0.002]
[1767874640329,3.22113251,3104.5,3103.6,0.96736123]
[1767874640500,0.04026542,3104.4,3103.6,0.96736123]
[1767874640705,4.25591339,3104.6,3103.6,0.96736123]
[1767874640907,0.99353869,3104.5,3103.6,0.96736123]
[1767874641106,0.04026542,3104.4,3103.6,0.96736123]
[1767874642522,1.03380411,3104.4,3103.6,4.18941943]
[1767874642719,0.99353869,3104.3,3103.5,0.002]
[1767874642923,0.99353869,3104.1,3103.5,0.002]
[1767874643123,1.0338093,3104.0,3103.5,0.002]
[1767874643533,0.04027061,3104.0,3103.5,0.002]
[1767874643832,1.03380801,3104.1,3103.5,0.002]
[1767874645434,0.99353869,3104.0,3103.9,0.002]
[1767874645733,0.99353869,3104.0,3103.5,0.002]
[1767874645930,1.0338106,3103.9,3103.5,0.002]
[1767874646717,0.04027191,3103.9,3103.5,0.002]
[1767874646919,1.0338106,3103.9,3103.5,0.002]
[1767874647218,1.78162011,3103.9,3103.5,0.002]
[1767874647430,5.00337745,3103.9,3103.5,0.002]
[1767874649232,0.99353869,3103.8,3103.5,0.002]
[1767874652535,0.04027191,3103.9,3103.5,0.91242483]
[1767874652716,0.001,3104.1,3103.5,0.91242483]
[1767874652717,0.001,3104.1,3103.7,0.91042483]
[1767874653113,0.001,3104.1,3103.5,0.01925435]
[1767874653114,0.001,3104.6,3103.9,0.91042483]
[1767874653539,0.001,3104.6,3104.1,0.91042483]
[1767874653737,0.94087853,3105.2,3104.3,0.91042483]
[1767874653939,0.001,3105.3,3104.3,0.91042483]
[1767874654654,0.001,3105.3,3104.5,0.91042483]
[1767874655724,0.94187853,3105.3,3104.3,3.22129318]
[1767874655925,0.98113358,3105.2,3104.3,3.22129318]
[1767874656431,0.98113358,3105.2,3103.5,0.91242483]
[1767874656622,0.94087853,3105.0,3103.7,0.91042483]
[1767874656824,0.94087853,3104.8,3103.7,0.91042483]
[1767874657025,0.04026153,3104.7,3103.7,0.91042483]
[1767874657262,0.98114006,3104.7,3103.7,0.91042483]
[1767874658064,0.98114006,3104.7,3103.9,0.002]
[1767874658761,3.22102686,3104.6,3103.9,0.002]
[1767874659067,0.04026413,3104.5,3103.9,0.002]
[1767874659254,0.98114266,3104.5,3103.9,0.002]
[1767874660246,0.98114266,3104.5,3103.9,0.00080467]
[1767874660449,0.94087853,3104.3,3103.9,0.00080467]
[1767874660745,4.20269208,3104.2,3103.9,0.00080467]
[1767874661155,0.94087853,3104.1,3103.9,0.00080467]
[1767874662975,4.16251752,3104.1,3103.9,0.00080467]
[1767874664143,0.94087853,3104.0,3103.5,0.002]
[1767874664445,0.94087853,3103.9,3103.5,0.002]
[1767874664974,3.22133814,3104.3,3103.5,0.91242483]
[1767874665182,0.04026802,3104.2,3103.5,0.91242483]
[1767874665861,7.38355481,3104.3,3103.5,0.91242483]
[1767874666037,0.04026802,3104.2,3103.5,0.91242483]
[1767874666239,0.04026802,3104.2,3103.5,0.002]
[1767874666461,0.98114655,3104.2,3103.5,0.002]
[1767874666970,3.22154569,3104.1,3103.5,0.002]
[1767874667144,0.94087853,3104.0,3103.5,0.002]
[1767874668354,0.94087853,3103.9,3103.5,0.002]
[1767874669058,4.1627356,3103.8,3103.5,0.002]
[1767874669465,3.22179122,3103.9,3103.5,0.002]
[1767874670032,3.22179122,3103.9,3103.8,0.002]
[1767874670939,3.26206313,3103.9,3103.8,0.002]
[1767874671269,4.16286197,3103.9,3103.8,0.002]
[1767874674374,0.94208321,3103.8,3103.2,0.002]
[1767874674572,0.94087853,3103.6,3103.2,0.002]
[1767874675462,3.22216851,3103.5,3103.2,0.002]
[1767874676378,0.94087853,3103.4,3103.2,0.002]
[1767874676748,0.94087853,3103.4,3102.9,0.002]
[1767874678157,4.16325471,3103.3,3102.9,0.002]
[1767874678576,7.38563089,3103.3,3102.9,0.002]
[1767874679560,0.94087853,3103.2,3102.9,0.002]
[1767874679786,1.67944162,3103.1,3102.7,0.002]
[1767874680279,3.22268772,3103.0,3102.7,0.002]
[1767874680970,3.22268772,3103.0,3102.7,1e-08]
[1767874681170,0.94087853,3102.9,3102.4,1e-08]
[1767874681486,0.94087853,3102.9,3102.3,0.002]
[1767874681683,0.94087853,3102.7,3101.5,0.91042483]
[1767874681884,0.94087853,3102.7,3101.6,0.91042483]
[1767874682090,0.94087853,3102.7,3101.6,0.90922015]
[1767874682410,3.2231032,3102.6,3101.6,0.90922015]
[1767874682591,6.4462064,3102.6,3101.6,0.91122015]
[1767874682764,7.34327743,3102.6,3101.7,0.98223026]
[1767874682958,0.845,3102.5,3101.7,0.98223026]
[1767874683400,7.34327743,3102.6,3101.7,0.98223026]
[1767874683582,0.845,3102.5,3101.7,0.98223026]